Cogmind - Beta 13 @@@ ROGUE MODE // 2024.04.04 @ 23:35:31 Player: Luca Result: Destroyed by X-57 Shotgunner with High-powered Shotgun Performance ------------- Evolutions (2) 1000 Regions Visited (3) 600 Robots Destroyed (48) 240 Value Destroyed (1444) 1444 Prototype IDs (0) 0 Alien Tech Used (0) 0 Bonus (0) 0 TOTAL SCORE: 3284 Bonus ------- None Cogmind --------- Core Integrity 0/550 Matter 233/300 Energy 100/100 System Corruption 0% Temperature Cool (0) Movement Rolling (115) Ox1 Location -8/Materials Parts ------- > --- POWER (1) -------- (None) > --- PROPULSION (3) --- Compact Wheel > --- UTILITY (5) ------ Large Storage Unit Visual Processing Unit Advanced Visual Processing Unit > --- WEAPON (2) ------- Katana > --- INVENTORY (15) --- Light Ion Engine Compact Wheel Improved Heat Sink Trap Scanner Light Armor Plating Shield Generator Hacking Suite Particle Cannon Particle Cannon High-powered Shotgun Improved Light Cannon Missile Launcher Peak State ------------ > --- POWER ------------ Improved Ion Engine > --- PROPULSION ------- Aluminum Leg Improved Aluminum Leg Carbon-fiber Leg > --- UTILITY ---------- Large Storage Unit Weight Redist. System Visual Processing Unit Advanced Visual Processing Unit Shield Generator > --- WEAPON ----------- Improved Light Cannon Katana > --- INVENTORY -------- Light Ion Engine Compact Wheel Compact Wheel Improved Heat Sink Trap Scanner Light Armor Plating Hacking Suite Particle Cannon Particle Cannon High-powered Shotgun Improved Light Cannon Improved Light Cannon Missile Launcher [Rating: 25] Favorites ----------- Power Improved Ion Engine Engine Improved Ion Engine Propulsion Aluminum Leg Leg Aluminum Leg Wheel Armored Wheel Utility Visual Processing Unit Device Heat Sink Storage Medium Storage Unit Processor Visual Processing Unit Protection Light Armor Plating Weapon Improved Light Cannon Energy Gun Particle Gun Energy Cannon Particle Cannon Ballistic Gun High-powered Shotgun Ballistic Cannon Improved Light Cannon Launcher Grenade Launcher Slashing Weapon Katana Build | -11 -10 -9 -8 ------- Run | Yrd Mat Mat Mat Slots Evolved 4 | . . 2 2 Power . | . . . . Propulsion 1 | . . 1 . Utility 3 | . . 1 2 Weapon . | . . . . Parts Attached 74 | 7 18 17 32 Power 6 | 1 3 1 1 Engine 6 | 1 3 1 1 Core . | . . . . Reactor . | . . . . Propulsion 23 | 2 5 7 9 Treads . | . . . . Leg 13 | 2 1 4 6 Wheel 10 | . 4 3 3 Hover . | . . . . Flight . | . . . . Utility 16 | 1 2 5 8 Device 8 | . 1 4 3 Storage 3 | 1 1 . 1 Processor 4 | . . 1 3 Hackware . | . . . . Protection 1 | . . . 1 Artifact . | . . . . Weapon 29 | 3 8 4 14 Energy Gun 6 | 2 4 . . Energy Cannon 3 | . 2 1 . Ballistic Gun 5 | 1 1 1 2 Ballistic Cannon 9 | . . 2 7 Launcher 2 | . 1 . 1 Special Weapon . | . . . . Impact Weapon . | . . . . Slashing Weapon 4 | . . . 4 Piercing Weapon . | . . . . Special Melee Weapon . | . . . . Unidentified Prototypes . | . . . . Parts Lost 15 | . 1 1 13 Power 1 | . . . 1 Propulsion 7 | . 1 . 6 Utility 4 | . . 1 3 Weapon 3 | . . . 3 Highest Loss Streak 3 | . 1 1 3 To Critical Strikes . | . . . . Average Slot Usage (%) 88 | . 87 98 85 Engine 11 | . 14 11 8 Leg 19 | . 13 24 21 Wheel 7 | . 12 8 2 Device 5 | . 4 12 3 Storage 11 | . 14 11 9 Processor 12 | . . 8 25 Energy Gun 6 | . 17 . . Energy Cannon 5 | . 7 11 . Ballistic Gun 2 | . 1 3 2 Ballistic Cannon 5 | . . 7 8 Slashing Weapon 1 | . . . 2 Naked Turns . | . . . . Heaviest Build 35 | 12 26 27 35 Greatest Support 44 | 20 24 39 44 Greatest Overweight (x) 9 | . 2 1 9 Average Overweight (x) . | . . . . Largest Inventory Capacity 15 | 8 10 10 15 Average Capacity 10 | 7 9 10 12 Most Carried 15 | 2 10 10 15 Average Carried 8 | . 6 9 11 Final Capacity 15 | 8 10 10 15 Final Carried 12 | 2 10 10 12 Class Distribution -------------------- 69% | Mutant 30% | Scavenger-Mutant Dominant Class ---------------- Mutant | -10/Materials Mutant | -9/Materials Scavenger-Mutant | -8/Materials Resources | -11 -10 -9 -8 ----------- Run | Yrd Mat Mat Mat Matter Collected 1107 | 213 258 168 468 Remotely . | . . . . Salvage Created 1466 | . 407 220 839 Parts 92 | . 27 28 37 Haulers Intercepted 1 | . 1 . . Recyclers Shooed 1 | . 1 . . Parts Field Recycled . | . . . . Retrieved Matter . | . . . . Parts Self-Destructed . | . . . . Prevented . | . . . . Kills | -11 -10 -9 -8 ------- Run | Yrd Mat Mat Mat Combat Hostiles Destroyed 35 | . 9 7 19 Melee 9 | . . . 9 Guns 9 | . 8 . 1 Cannons 14 | . 1 7 6 AOE 3 | . . . 3 Classes Destroyed 9 | . 4 1 4 Hauler 1 | . 1 . . Recycler 1 | . . . 1 Operator 1 | . . 1 . Watcher 10 | . 3 3 4 Swarmer 11 | . 3 4 4 Grunt 17 | . 6 3 8 Sentry 4 | . . . 4 Specialist 1 | . . . 1 Hunter 2 | . . . 2 Best Kill Streak 7 | . 2 5 7 Combat Bots Only 7 | . 2 5 7 Max Kills in Single Turn 3 | . 1 1 3 Gunslinging . | . . . . Exploded 3 | . . . 3 Melee 1 | . . . 1 Uniques/NPCs Destroyed . | . . . . Combat | -11 -10 -9 -8 -------- Run | Yrd Mat Mat Mat Hostile Shots Fired 300 | . 66 39 195 Missed 83 | . 13 10 60 Damage Taken 2903 | . 639 306 1958 Core 811 | . 217 35 559 Absorbed by Shields 24 | . . . 24 Regen/Repaired (Parts) 15 | . . 15 . Core Remaining (%) 68 | 100 13 91 . Volleys Fired 135 | . 64 29 42 Largest 2 | . 2 2 2 Hottest 136 | . 136 136 78 Shots Fired 214 | . 115 39 60 Gun 98 | . 88 . 10 Cannon 113 | . 27 39 47 Launcher 3 | . . . 3 Special . | . . . . Kinetic 73 | . 14 2 57 Thermal 138 | . 101 37 . Explosive 3 | . . . 3 Electromagnetic . | . . . . Robot Hit Streak 12 | . 9 9 12 Robot Miss Streak 5 | . 5 3 4 Penetration Max . | . . . . Secondary Targets . | . . . . Shots Hit Robots 158 | . 61 27 70 Core Hits 70 | . 23 12 35 Critical Kills . | . . . . Critical Parts Destroyed . | . . . . Critical Strikes 11 | . 4 . 7 Burn 4 | . 4 . . Sever 7 | . . . 7 Melee Attacks 44 | . . . 44 Impact . | . . . . Slashing 44 | . . . 44 Piercing . | . . . . Sneak Attacks 1 | . . . 1 Combat Hostiles . | . . . . Follow-up Attacks . | . . . . Damage Inflicted 3719 | . 885 563 2271 Guns 845 | . 715 . 130 Cannons 1236 | . 144 554 538 Explosions 338 | . . . 338 Melee 1265 | . . . 1265 Ramming 35 | . 26 9 . Kinetic 808 | . 99 41 668 Thermal 1273 | . 760 513 . Explosive 338 | . . . 338 Electromagnetic . | . . . . Impact . | . . . . Slashing 1265 | . . . 1265 Piercing . | . . . . Highest Corruption 3 | . 3 . . Average Corruption 2 | . 2 . . Corruption Purged . | . . . . Corruption Blocked . | . . . . Effects 14 | . 14 . . Message Errors 5 | . 5 . . Matter Fused 2 | . 2 . . Heat Flow Errors 3 | . 3 . . Data Loss (minor) 1 | . 1 . . Misfires 2 | . 2 . . Alerts 1 | . 1 . . Overload Shots . | . . . . Overflow Damage 34 | . . 3 31 Projectiles 22 | . . 3 19 Explosions . | . . . . Melee 12 | . . . 12 Knockbacks 6 | . 1 1 4 Impact 2 | . 1 1 . Kinetic 4 | . . . 4 Secondary . | . . . . Self-Inflicted Damage 25 | . 13 . 12 Shots 1 | . . . 1 Rammed 3 | . 3 . . Targets Rammed 5 | . 3 1 1 Kicked 2 | . . 1 1 Crushed . | . . . . Highest Temperature 477 | . 477 329 21 Average Temperature 137 | . 155 126 8 Received Heat Transfer 861 | . 315 105 441 Effects 10 | . 7 3 . Shutdowns 2 | . 2 . . Energy Bleed 3 | . 3 . . Interference 3 | . . 3 . Short Circuit 1 | . 1 . . Damage (minor) 1 | . 1 . . Siege Activations . | . . . . Robots Corrupted . | . . . . Combat Hostiles . | . . . . Parts Fried . | . . . . Impact Corruptions . | . . . . Robots Melted . | . . . . Combat Hostiles . | . . . . Parts Melted 3 | . 3 . . Heat Transferred 3071 | . 2146 925 . Parts Sabotaged . | . . . . Parts Stolen . | . . . . Parts Stripped . | . . . . Power Chain Reactions . | . . . . Alert | -11 -10 -9 -8 ------- Run | Yrd Mat Mat Mat Peak Influence 394 | . 191 227 394 Initial 33 | . . 33 20 Average 129 | . 68 105 200 Maximum Alert Level 1 | . . 1 1 Low Security (%) 68 | 100 100 68 40 Level 1 31 | . . 31 59 Level 2 . | . . . . Level 3 . | . . . . Level 4 . | . . . . Level 5 . | . . . . High Security . | . . . . Max Security . | . . . . Squads Dispatched 7 | . 2 3 2 Investigation 3 | . 1 1 1 Extermination . | . . . . Reinforcement 4 | . 1 2 1 Assault . | . . . . Garrison . | . . . . Intercept . | . . . . Searches Triggered . | . . . . Construction Impeded . | . . . . Haulers Reinforced . | . . . . Active Scanning Responses . | . . . . Cargo Convoy Interrupts . | . . . . Stealth | -11 -10 -9 -8 --------- Run | Yrd Mat Mat Mat Distress Signals 1 | . . 1 . Communications Jammed . | . . . . Distress Signals . | . . . . Times Spotted 66 | . 14 16 36 Peak Tracking Total 7 | . 3 6 7 Tactical Retreats 4 | . 1 . 3 Traps | -11 -10 -9 -8 ------- Run | Yrd Mat Mat Mat Traps Triggered 4 | . 2 2 . Indirectly . | . . . . Trap Hack Attempts . | . . . . Triggered . | . . . . Disarmed 4 | . 4 . . Reprogrammed . | . . . . Reused . | . . . . Traps Extracted . | . . . . Installed . | . . . . Triggered . | . . . . Machines | -11 -10 -9 -8 ---------- Run | Yrd Mat Mat Mat Machines Disabled 4 | . . . 4 Max in Single Turn 1 | . . . 1 Machines Repaired . | . . . . Machines Dismantled . | . . . . Machines Sabotaged . | . . . . Overloaded Fab Kills . | . . . . Hacking | -11 -10 -9 -8 --------- Run | Yrd Mat Mat Mat Machines Accessed 11 | . 7 2 2 Terminals 6 | . 4 1 1 Fabricators . | . . . . Repair Stations 2 | . 1 1 . Recycling Units 2 | . 2 . . Scanalyzers 1 | . . . 1 Garrison Access . | . . . . Total Hacks 26 | . 17 3 6 Successful 13 | . 7 3 3 Failed 13 | . 10 . 3 Catastrophic . | . . . . Database Lockouts . | . . . . Manual . | . . . . Terminals 14 | . 10 1 3 Fabricators . | . . . . Repair Stations 5 | . 3 2 . Recycling Units 4 | . 4 . . Scanalyzers 3 | . . . 3 Garrison Access . | . . . . Terminal Hacks 9 | . 6 1 2 Record 1 | . . . 1 Emergency Access Points 1 | . 1 . . Alert Level 1 | . 1 . . Locate Traps 2 | . 1 1 . Disarm Traps 1 | . 1 . . Recall Reinforcements 1 | . 1 . . Zone Layout 2 | . 1 . 1 Fabricator Hacks . | . . . . Repair Station Hacks 3 | . 1 2 . Scan Component 2 | . 1 1 . Repair 1 | . . 1 . Recycling Unit Hacks . | . . . . Scanalyzer 1 | . . . 1 Insert Component 1 | . . . 1 Garrison Access Hacks . | . . . . Unauthorized Hacks . | . . . . Terminals . | . . . . Fabricators . | . . . . Repair Stations . | . . . . Recycling Units . | . . . . Scanalyzers . | . . . . Garrison Access . | . . . . Data Cores Recovered . | . . . . Used . | . . . . Hacking Detections 6 | . 5 . 1 Full Trace Events 2 | . 1 . 1 Feedback Events . | . . . . Feedback Blocked . | . . . . Robot Schematics Acquired . | . . . . Robots Built . | . . . . Authchips . | . . . . Time . | . . . . Total Robot Build Rating . | . . . . Part Schematics Acquired . | . . . . Parts Built . | . . . . Authchips . | . . . . Time . | . . . . Total Part Build Rating . | . . . . Parts Repaired 1 | . . 1 . Time 26 | . . 26 . Parts Recycled . | . . . . Recycled Matter . | . . . . Retrieved Matter . | . . . . Retrieved Components . | . . . . Parts Scanalyzed . | . . . . Part Schematics Acquired . | . . . . Parts Damaged . | . . . . Bothacking | -11 -10 -9 -8 ------------ Run | Yrd Mat Mat Mat Used RIF Installer . | . . . . Robots Hacked . | . . . . Non-combat . | . . . . Combat . | . . . . Robot Hacks Applied . | . . . . Relay Couplers Released . | . . . . Fabnet Peak Effective % . | . . . . Robots Rewired . | . . . . Allies Hacked . | . . . . Hacks Repelled . | . . . . Allies | -11 -10 -9 -8 -------- Run | Yrd Mat Mat Mat Total Allies . | . . . . Largest Group . | . . . . Highest-Rated Group . | . . . . Highest-Rated Ally . | . . . . Total Orders . | . . . . Ally Attacks . | . . . . Total Damage . | . . . . Kills . | . . . . Allies Corrupted . | . . . . Allies Melted . | . . . . Intel | -11 -10 -9 -8 ------- Run | Yrd Mat Mat Mat Robot Analysis Total . | . . . . Derelict Logs Recovered . | . . . . Drone Launches . | . . . . Drone Recoveries . | . . . . Exploration | -11 -10 -9 -8 ------------- Run | Yrd Mat Mat Mat Turns Passed 3525 | 61 1271 752 1441 Spaces Moved 2218 | 44 856 462 856 Core 14 | 4 . . 10 Treads . | . . . . Legs 1546 | 40 443 381 682 Wheels 658 | . 413 81 164 Hover . | . . . . Flight . | . . . . Fastest Speed 50 | 50 90 90 100 Average Speed 119 | 113 119 114 122 Slowest Speed 500 | 120 190 190 500 Overloaded Moves . | . . . . Propulsion Burnouts . | . . . . Robots Hopped . | . . . . Cave-ins Triggered . | . . . . Exploration Rate (%) 46 | 3 96 43 42 Regions Visited 3 Branch Regions . Pre-discovered Areas . | . . . . Known Exits Taken . | . . . . Unknown Exits Taken 3 | 1 1 1 . Scrap Searched . | . . . . Spaces Dug . | . . . . Terrain Destroyed 18 | . . . 18 Melee . | . . . . Projectile 3 | . . . 3 AOE 15 | . . . 15 Terrain Rammed . | . . . . Walls Destroyed . | . . . . Machines Disabled . | . . . . Actions | -11 -10 -9 -8 --------- Run | Yrd Mat Mat Mat Total 2806 | 52 993 648 1113 Wait 265 | . 33 114 118 Move 2215 | 43 855 461 856 Hop . | . . . . Pick Up 28 | 1 8 10 9 Fast Attach 32 | 7 10 8 7 Attach 14 | . . 5 9 Detach 9 | 1 2 2 4 Swap 28 | . 8 4 16 Drop 31 | . 10 14 7 Fire 135 | . 64 29 42 Melee 44 | . . . 44 Ram 3 | . 3 . . Kick 2 | . . 1 1 Crush . | . . . . Escape Stasis . | . . . . Rewire . | . . . . Trap . | . . . . Miscellaneous . | . . . . Route ------- -11/Scrapyard -10/Materials (discovered 4 exits: *Mat x3 / [*Min]) -9/Materials (discovered 3 exits: *Mat / [*Min x2]) -8/Materials History --------- Turn | Location | Event 27 | -11/Scrapyard | Discovered new exit (range 14) 62 | -11/Scrapyard | Entered Materials 199 | -10/Materials | Discovered new exit (range 14) 311 | -10/Materials | Discovered new exit (range 12) 312 | -10/Materials | Build established: Mutant 543 | -10/Materials | Core integrity fell below 50% 618 | -10/Materials | Discovered new exit (range 8) 947 | -10/Materials | Discovered new exit (range 14) 1161 | -10/Materials | Core integrity fell below 20% 1333 | -10/Materials | Entered another Materials area 1333 | -9/Materials | Evolved 2 slots: Propulsion x1, Utility x1 1519 | -9/Materials | Met 8R-AWN 1572 | -9/Materials | Discovered new exit (range 18) 1731 | -9/Materials | Discovered new exit (range 13) 2054 | -9/Materials | Repaired Aluminum Leg 2066 | -9/Materials | Discovered new exit (range 3) 2085 | -9/Materials | Entered another Materials area 2085 | -8/Materials | Evolved 2 slots: Utility x2 2306 | -8/Materials | Destroyed 7 combat bots 2311 | -8/Materials | Lost 3 parts (1n1u1w) 2791 | -8/Materials | Build established: Scavenger-Mutant 3444 | -8/Materials | Core integrity fell below 50% 3479 | -8/Materials | Lost 3 parts (1p1n1u) 3521 | -8/Materials | Core integrity fell below 20% 3526 | -8/Materials | Destroyed by X-57 Shotgunner with High-powered Shotgun Last Messages --------------- 03451_ K-01 Serf cleans the Matter Pump. 03453_ Acquired Imp. Light Cannon. 03459_ Acquired 5 matter. 03471_ U-05 Engineer builds a Wall. 03472_ Slug penetrates Wall. 03475_ U-05 Engineer builds a Wall. 03479_ Acquired 5 matter. 03480_ Slug penetrates Wall. 03483_ U-05 Engineer builds a Wall. 03503_ X-57 Shotgunner destroyed. 03508_ Imp. Light Cannon destroyed. 03512_ U-05 Engineer builds a Wall. 03513_ X-57 Shotgunner VSS Leg severed. 03516_ U-05 Engineer builds a Wall. 03520_ X-57 Shotgunner Hrd. Medium Armor Plating severed. 03520_ U-05 Engineer builds a Wall. 03524_ Slug penetrates Wall. 03524_ Knocked back. 03524_ U-05 Engineer builds a Wall. Map ----- +----------------------------------------------------+ | # % # #???????????? | | ! ## # #???????????? | | # + #???????????? | | ## " # #???????????? | | """"" """"" """" ## # #???????????? | | """"" """"" """" ########## ########????? | | """"" " """ """" ########## # #????? | | % # #????? | | %# /// #????? | | % %+ /// !#????? | | #####/####### #+############## %#%// #????? | | # #?# # !#????????# # #????? | | # = #?# #""" #??###??## ########????? | | # ! #?# #""" ####T#### #??????????? | | # ! #?# #""" ## #??????????? | | # #?# # ## #??????????? | | # #?# #""" ## #??????????? | | # #?# #""" ## #### #??????????? | | # #?# #""" !## ##########?#######??? | | ##### #####?# # ## # #?# #??? | | ############# ] ## + ### #??? | | !! # ! ## # + #??? | | [! # ] ## # ### #??? | | [! ########% # #?# ! #??? | | = #??????# # #?### ###??? | | % #??????#[@ # #???# #????? | | " """ " " ########x= # ! #???# #????? | | T" """% "" %Hu # #???# #????? | | "" """% ur% ##########???# #????? | | %% r ##########???# #????? | | % #???# #????? | | ############ ########+######### #???# #????? | | ??????????### # ??# #???# #???# #????? | | ????????????# ##??# #???# #???# #????? | | ????????????# #???# """ """ #???# #???# #????? | | ????????????# #???# """ """ #???#%##### #????? | | ????????????# #???# """ """ #???# #????? | | ????????????# #???# #???# #????? | | ????????????# #???# ! #???# #????? | | ???????????? ???# !#???# #????? | | ??????????? ???###########?### #####+#####? | | ??????????? ????????????????# # #? | | ?????????? ????????????????# # """ [#? | | ??????????## ????????????????# # """ #? | | ???????????#####????????????????# " " # """ #? | | ????????????????????????????????# """ # #? | | ????????????????????????????????# """ # #? | | ????????????????????????????????###############? | | ???????????????????????????????????????????????? | | ???????????????????????????????????????????????? | +----------------------------------------------------+ Best States ------------- Heat Dissipation 48 Energy Generation 12 Energy Capacity 265 Matter Stores 300 Matter Capacity 300 Sight Range 20 Robot Scan Range 14 Terrain Scan Density 10 Additional Mass Support 6 Armor Coverage 150 Evasion (%) 59 Recoil Reduction 4 Item Schematics ----------------- None Robot Schematics ------------------ None Fabricated ------------ Nothing Alien Tech Used ----------------- None Achievements -------------- None Challenges ------------ None Game ------ Seed RainbowPotentialFilter Manual? 0 Play Time 01:01:54 Cumulative 13.8 hours Start 2024.04.04 @ 22:31:44 End 2024.04.04 @ 23:35:31 Sessions 1 Manual Loads 0 Difficulty Rogue Special Mode None Game No. 6 Rogue 6 Adventurer 0 Explorer 0 Win Type - Total 0 Types 0/0/0/0/0/0/0/0/0 Lore% 6 Gallery% 16 Achievement% 13 Wizard Run 0 Options --------- Layout 1 ASCII 1 Keyboard 0 Movement Mouse Keybinds 0 Fullscreen 2 Font 24/Tallcaps Map View 50x35 Zoom Use 0% Tactical HUD 1 Map Filters NONE Filters NONE Steam 1 RUN: 3c3ab0f3-2dcf-4237-b0b5-4e66ea3cfbd6